Workbook

Sheet 聚会总览
B3: 聚会总览
B6: 事件 | D6: 来宾统计 | H6: ="未回复人数: "&OutstandingRSVPs -> 未回复人数: 2
B7: 祖母 75 岁生日 | D7: 回复总览 | F7: 每位来宾成本 | H7: 预算金额
D8: 确认来宾 | E8: 确认总计 | F8: 饮食 | G8: 其他 | H8: 总计
B9: 日期 | D9: 成人 | E9: =SUMIF(来宾表[是否出席？],"=是",来宾表[成人]) -> 26 | F9: =食品表[[#Totals],[每位成人成本]] -> ¥126.90 | G9: =EssentialCostPerGuest -> ¥186.96 | H9: =(参加者摘要[[#This Row],[饮食]]+参加者摘要[[#This Row],[其他]])*AdultTotal -> ¥8,160.29
B10: 2011-06-14 | D10: 儿童 | E10: =SUMIF(来宾表[是否出席？],"=是",来宾表[儿童]) -> 20 | F10: =食品表[[#Totals],[每位儿童成本]] -> ¥72.53 | G10: =EssentialCostPerGuest -> ¥186.96 | H10: =(参加者摘要[[#This Row],[饮食]]+参加者摘要[[#This Row],[其他]])*AdultTotal -> ¥6,746.62
D11: 总计 | E11: =SUBTOTAL(109,参加者摘要[确认总计]) -> 46 | F11: ="平均 "&TEXT(SUBTOTAL(101,参加者摘要[饮食]),"[$-C04]¥#,##0.00") -> 平均 ¥99.71 | G11: ="平均 "&TEXT(SUBTOTAL(101,参加者摘要[其他]),"[$-C04]¥#,##0.00") -> 平均 ¥186.96 | H11: =SUBTOTAL(109,参加者摘要[总计]) -> ¥14,906.91
B12: 时间
B13: 下午 2 点到下午 4 点
B15: 地点
B16: Kim 阿姨家中 | D16: 预算摘要
D17: 项目 | E17: 计数 | F17: 预算金额 | G17: 总成本 | H17: 差额
D18: 食品和饮料 | E18: =COUNTA(食品表[食品或饮料项目]) -> 18 | F18: ¥5,000.00 | G18: =食品表[[#Totals],[总成本]] -> ¥4,750.00 | H18: =预算总览[[#This Row],[预算金额]]-预算总览[[#This Row],[总成本]] -> ¥250.00
D19: =Table1Header -> 设备和用品 | E19: =COUNTA(表_1_预算[设备和用品]) -> 7 | F19: ¥4,000.00 | G19: =表_1_预算[[#Totals],[成本]] -> ¥4,000.00 | H19: =预算总览[[#This Row],[预算金额]]-预算总览[[#This Row],[总成本]] -> ¥0.00
D20: =Table2Header -> 装饰品 | E20: =COUNTA(表_2_预算[装饰品]) -> 4 | F20: ¥1,500.00 | G20: =表_2_预算[[#Totals],[成本]] -> ¥1,750.00 | H20: =预算总览[[#This Row],[预算金额]]-预算总览[[#This Row],[总成本]] -> !(¥250.00!)
D21: =Table3Header -> 其他 | E21: =COUNTA(表_3_预算[其他]) -> 4 | F21: ¥3,000.00 | G21: =表_3_预算[[#Totals],[成本]] -> ¥2,850.00 | H21: =预算总览[[#This Row],[预算金额]]-预算总览[[#This Row],[总成本]] -> ¥150.00
D22: 总计 | E22: =SUBTOTAL(109,预算总览[计数]) -> 33 | F22: =SUBTOTAL(109,预算总览[预算金额]) -> ¥13,500.00 | G22: =SUBTOTAL(109,预算总览[总成本]) -> ¥13,350.00 | H22: =预算总览[[#Totals],[预算金额]]-预算总览[[#Totals],[总成本]] -> ¥150.00

Sheet 来宾列表
B3: 来宾列表
B7: 姓名 | C7: 地址 | D7: 市/县 | E7: 省/市/自治区 | F7: 邮政编码 | G7: 电话 | H7: 电子邮件 | I7: 是否出席？ | J7: 儿童 | K7: 成人 | L7: 总计
B8: 家庭 1 | C8: 地址 1 | D8: 市/县 1 | E8: 省/市/自治区 1 | F8: 邮政编码 1 | G8: 电话 1 | H8: 电子邮件 1 | I8: 否 | J8: 2 | K8: 2 | L8: =SUM(来宾表[[#This Row],[儿童]:[成人]]) -> 4
B9: 家庭 2 | C9: 地址 2 | D9: 市/县 2 | E9: 省/市/自治区 2 | F9: 邮政编码 2 | G9: 电话 2 | H9: 电子邮件 2 | I9: 是 | J9: 1 | K9: 1 | L9: =SUM(来宾表[[#This Row],[儿童]:[成人]]) -> 2
B10: 家庭 3 | C10: 地址 3 | D10: 市/县 3 | E10: 省/市/自治区 3 | F10: 邮政编码 3 | G10: 电话 3 | H10: 电子邮件 3 | I10: 是 | J10: 3 | K10: 3 | L10: =SUM(来宾表[[#This Row],[儿童]:[成人]]) -> 6
B11: 家庭 4 | C11: 地址 4 | D11: 市/县 4 | E11: 省/市/自治区 4 | F11: 邮政编码 4 | G11: 电话 4 | H11: 电子邮件 4 | K11: 2 | L11: =SUM(来宾表[[#This Row],[儿童]:[成人]]) -> 2
B12: 家庭 5 | C12: 地址 5 | D12: 市/县 5 | E12: 省/市/自治区 5 | F12: 邮政编码 5 | G12: 电话 5 | H12: 电子邮件 5 | I12: 是 | J12: 4 | K12: 3 | L12: =SUM(来宾表[[#This Row],[儿童]:[成人]]) -> 7
B13: 家庭 6 | C13: 地址 6 | D13: 市/县 6 | E13: 省/市/自治区 6 | F13: 邮政编码 6 | G13: 电话 6 | H13: 电子邮件 6 | I13: 是 | J13: 2 | K13: 2 | L13: =SUM(来宾表[[#This Row],[儿童]:[成人]]) -> 4
B14: 家庭 7 | C14: 地址 7 | D14: 市/县 7 | E14: 省/市/自治区 7 | F14: 邮政编码 7 | G14: 电话 7 | H14: 电子邮件 7 | I14: 是 | J14: 1 | K14: 4 | L14: =SUM(来宾表[[#This Row],[儿童]:[成人]]) -> 5
B15: 家庭 8 | C15: 地址 8 | D15: 市/县 8 | E15: 省/市/自治区 8 | F15: 邮政编码 8 | G15: 电话 8 | H15: 电子邮件 8 | I15: 否 | J15: 5 | K15: 3 | L15: =SUM(来宾表[[#This Row],[儿童]:[成人]]) -> 8
B16: 家庭 9 | C16: 地址 9 | D16: 市/县 9 | E16: 省/市/自治区 9 | F16: 邮政编码 9 | G16: 电话 9 | H16: 电子邮件 9 | I16: 是 | J16: 3 | K16: 2 | L16: =SUM(来宾表[[#This Row],[儿童]:[成人]]) -> 5
B17: 家庭 10 | C17: 地址 10 | D17: 市/县 10 | E17: 省/市/自治区 10 | F17: 邮政编码 10 | G17: 电话 10 | H17: 电子邮件 10 | I17: 是 | K17: 4 | L17: =SUM(来宾表[[#This Row],[儿童]:[成人]]) -> 4
B18: 家庭 11 | C18: 地址 11 | D18: 市/县 11 | E18: 省/市/自治区 11 | F18: 邮政编码 11 | G18: 电话 11 | H18: 电子邮件 11 | I18: 是 | J18: 3 | K18: 5 | L18: =SUM(来宾表[[#This Row],[儿童]:[成人]]) -> 8
B19: 家庭 12 | C19: 地址 12 | D19: 市/县 12 | E19: 省/市/自治区 12 | F19: 邮政编码 12 | G19: 电话 12 | H19: 电子邮件 12 | I19: 否 | J19: 2 | K19: 3 | L19: =SUM(来宾表[[#This Row],[儿童]:[成人]]) -> 5
B20: 家庭 13 | C20: 地址 13 | D20: 市/县 13 | E20: 省/市/自治区 13 | F20: 邮政编码 13 | G20: 电话 13 | H20: 电子邮件 13 | I20: 是 | J20: 3 | K20: 2 | L20: =SUM(来宾表[[#This Row],[儿童]:[成人]]) -> 5
B21: 家庭 14 | C21: 地址 14 | D21: 市/县 14 | E21: 省/市/自治区 14 | F21: 邮政编码 14 | G21: 电话 14 | H21: 电子邮件 14 | I21: 否 | K21: 1 | L21: =SUM(来宾表[[#This Row],[儿童]:[成人]]) -> 1
B22: 家庭 15 | C22: 地址 15 | D22: 市/县 15 | E22: 省/市/自治区 15 | F22: 邮政编码 15 | G22: 电话 15 | H22: 电子邮件 15 | K22: 2 | L22: =SUM(来宾表[[#This Row],[儿童]:[成人]]) -> 2

Sheet 食品及饮料
B3: 食品和饮料
B5: 请输入成本和预计份数以根据总参与者自动计算总份数和每份的成本
B6: 食品或饮料项目 | C6: 总成本 | D6: 每位儿童份数 | E6: 每位成人份数 | F6: 总份数 | G6: 每份成本 | H6: 每位儿童成本 | I6: 每位成人成本 | J6: 备注
B7: 苏打 | C7: ¥150.00 | D7: 0.5 | E7: 2 | F7: =(食品表[[#This Row],[每位儿童份数]]*ChildrenTotal)+(食品表[[#This Row],[每位成人份数]]*AdultTotal) -> 62 | G7: =IFERROR(食品表[[#This Row],[总成本]]/食品表[[#This Row],[总份数]],"") -> ¥2.42 | H7: =IFERROR(食品表[[#This Row],[每份成本]]*食品表[[#This Row],[每位儿童份数]],"") -> ¥1.21 | I7: =IFERROR(食品表[[#This Row],[每份成本]]*食品表[[#This Row],[每位成人份数]],"") -> ¥4.84 | J7: 2 升瓶装
B8: 果汁瓶 | C8: ¥150.00 | D8: 2 | E8: 0 | F8: =(食品表[[#This Row],[每位儿童份数]]*ChildrenTotal)+(食品表[[#This Row],[每位成人份数]]*AdultTotal) -> 40 | G8: =IFERROR(食品表[[#This Row],[总成本]]/食品表[[#This Row],[总份数]],"") -> ¥3.75 | H8: =IFERROR(食品表[[#This Row],[每份成本]]*食品表[[#This Row],[每位儿童份数]],"") -> ¥7.50 | I8: =IFERROR(食品表[[#This Row],[每份成本]]*食品表[[#This Row],[每位成人份数]],"") -> 0 | J8: 苹果和白葡萄
B9: 酒水 | C9: ¥500.00 | D9: 0 | E9: 2 | F9: =(食品表[[#This Row],[每位儿童份数]]*ChildrenTotal)+(食品表[[#This Row],[每位成人份数]]*AdultTotal) -> 52 | G9: =IFERROR(食品表[[#This Row],[总成本]]/食品表[[#This Row],[总份数]],"") -> ¥9.62 | H9: =IFERROR(食品表[[#This Row],[每份成本]]*食品表[[#This Row],[每位儿童份数]],"") -> 0 | I9: =IFERROR(食品表[[#This Row],[每份成本]]*食品表[[#This Row],[每位成人份数]],"") -> ¥19.23
B10: 蛋糕 | C10: ¥750.00 | D10: 1 | E10: 1 | F10: =(食品表[[#This Row],[每位儿童份数]]*ChildrenTotal)+(食品表[[#This Row],[每位成人份数]]*AdultTotal) -> 46 | G10: =IFERROR(食品表[[#This Row],[总成本]]/食品表[[#This Row],[总份数]],"") -> ¥16.30 | H10: =IFERROR(食品表[[#This Row],[每份成本]]*食品表[[#This Row],[每位儿童份数]],"") -> ¥16.30 | I10: =IFERROR(食品表[[#This Row],[每份成本]]*食品表[[#This Row],[每位成人份数]],"") -> ¥16.30 | J10: 从当地面包店订购
B11: 冰激凌 | C11: ¥200.00 | D11: 1 | E11: 1.5 | F11: =(食品表[[#This Row],[每位儿童份数]]*ChildrenTotal)+(食品表[[#This Row],[每位成人份数]]*AdultTotal) -> 59 | G11: =IFERROR(食品表[[#This Row],[总成本]]/食品表[[#This Row],[总份数]],"") -> ¥3.39 | H11: =IFERROR(食品表[[#This Row],[每份成本]]*食品表[[#This Row],[每位儿童份数]],"") -> ¥3.39 | I11: =IFERROR(食品表[[#This Row],[每份成本]]*食品表[[#This Row],[每位成人份数]],"") -> ¥5.08
B12: 布丁杯 | C12: ¥150.00 | D12: 1 | E12: 0 | F12: =(食品表[[#This Row],[每位儿童份数]]*ChildrenTotal)+(食品表[[#This Row],[每位成人份数]]*AdultTotal) -> 20 | G12: =IFERROR(食品表[[#This Row],[总成本]]/食品表[[#This Row],[总份数]],"") -> ¥7.50 | H12: =IFERROR(食品表[[#This Row],[每份成本]]*食品表[[#This Row],[每位儿童份数]],"") -> ¥7.50 | I12: =IFERROR(食品表[[#This Row],[每份成本]]*食品表[[#This Row],[每位成人份数]],"") -> 0 | J12: 购买打包杯：香草和巧克力味
B13: 酿蘑菇 | C13: ¥320.00 | D13: 1 | E13: 2 | F13: =(食品表[[#This Row],[每位儿童份数]]*ChildrenTotal)+(食品表[[#This Row],[每位成人份数]]*AdultTotal) -> 72 | G13: =IFERROR(食品表[[#This Row],[总成本]]/食品表[[#This Row],[总份数]],"") -> ¥4.44 | H13: =IFERROR(食品表[[#This Row],[每份成本]]*食品表[[#This Row],[每位儿童份数]],"") -> ¥4.44 | I13: =IFERROR(食品表[[#This Row],[每份成本]]*食品表[[#This Row],[每位成人份数]],"") -> ¥8.89 | J13: 奶油干酪香肠酿草菇
B14: 意式特色面包 | C14: ¥220.00 | D14: 0 | E14: 3 | F14: =(食品表[[#This Row],[每位儿童份数]]*ChildrenTotal)+(食品表[[#This Row],[每位成人份数]]*AdultTotal) -> 78 | G14: =IFERROR(食品表[[#This Row],[总成本]]/食品表[[#This Row],[总份数]],"") -> ¥2.82 | H14: =IFERROR(食品表[[#This Row],[每份成本]]*食品表[[#This Row],[每位儿童份数]],"") -> 0 | I14: =IFERROR(食品表[[#This Row],[每份成本]]*食品表[[#This Row],[每位成人份数]],"") -> ¥8.46 | J14: 番茄罗勒
B15: 烟熏三文鱼 | C15: ¥500.00 | D15: 1 | E15: 2 | F15: =(食品表[[#This Row],[每位儿童份数]]*ChildrenTotal)+(食品表[[#This Row],[每位成人份数]]*AdultTotal) -> 72 | G15: =IFERROR(食品表[[#This Row],[总成本]]/食品表[[#This Row],[总份数]],"") -> ¥6.94 | H15: =IFERROR(食品表[[#This Row],[每份成本]]*食品表[[#This Row],[每位儿童份数]],"") -> ¥6.94 | I15: =IFERROR(食品表[[#This Row],[每份成本]]*食品表[[#This Row],[每位成人份数]],"") -> ¥13.89
B16: 迷你百吉饼 | C16: ¥200.00 | D16: 1 | E16: 2 | F16: =(食品表[[#This Row],[每位儿童份数]]*ChildrenTotal)+(食品表[[#This Row],[每位成人份数]]*AdultTotal) -> 72 | G16: =IFERROR(食品表[[#This Row],[总成本]]/食品表[[#This Row],[总份数]],"") -> ¥2.78 | H16: =IFERROR(食品表[[#This Row],[每份成本]]*食品表[[#This Row],[每位儿童份数]],"") -> ¥2.78 | I16: =IFERROR(食品表[[#This Row],[每份成本]]*食品表[[#This Row],[每位成人份数]],"") -> ¥5.56 | J16: 4 包 （各种口味）
B17: 奶油干酪 | C17: ¥100.00 | D17: 1 | E17: 2 | F17: =(食品表[[#This Row],[每位儿童份数]]*ChildrenTotal)+(食品表[[#This Row],[每位成人份数]]*AdultTotal) -> 72 | G17: =IFERROR(食品表[[#This Row],[总成本]]/食品表[[#This Row],[总份数]],"") -> ¥1.39 | H17: =IFERROR(食品表[[#This Row],[每份成本]]*食品表[[#This Row],[每位儿童份数]],"") -> ¥1.39 | I17: =IFERROR(食品表[[#This Row],[每份成本]]*食品表[[#This Row],[每位成人份数]],"") -> ¥2.78 | J17: 2 大桶
B18: 酸豆 | C18: ¥120.00 | D18: 1 | E18: 2 | F18: =(食品表[[#This Row],[每位儿童份数]]*ChildrenTotal)+(食品表[[#This Row],[每位成人份数]]*AdultTotal) -> 72 | G18: =IFERROR(食品表[[#This Row],[总成本]]/食品表[[#This Row],[总份数]],"") -> ¥1.67 | H18: =IFERROR(食品表[[#This Row],[每份成本]]*食品表[[#This Row],[每位儿童份数]],"") -> ¥1.67 | I18: =IFERROR(食品表[[#This Row],[每份成本]]*食品表[[#This Row],[每位成人份数]],"") -> ¥3.33 | J18: 3 罐
B19: 鸡翅 | C19: ¥450.00 | D19: 2 | E19: 4 | F19: =(食品表[[#This Row],[每位儿童份数]]*ChildrenTotal)+(食品表[[#This Row],[每位成人份数]]*AdultTotal) -> 144 | G19: =IFERROR(食品表[[#This Row],[总成本]]/食品表[[#This Row],[总份数]],"") -> ¥3.13 | H19: =IFERROR(食品表[[#This Row],[每份成本]]*食品表[[#This Row],[每位儿童份数]],"") -> ¥6.25 | I19: =IFERROR(食品表[[#This Row],[每份成本]]*食品表[[#This Row],[每位成人份数]],"") -> ¥12.50 | J19: 从当地鸡翅店购买
B20: 鹰嘴豆泥 | C20: ¥100.00 | D20: 4 | E20: 6 | F20: =(食品表[[#This Row],[每位儿童份数]]*ChildrenTotal)+(食品表[[#This Row],[每位成人份数]]*AdultTotal) -> 236 | G20: =IFERROR(食品表[[#This Row],[总成本]]/食品表[[#This Row],[总份数]],"") -> ¥0.42 | H20: =IFERROR(食品表[[#This Row],[每份成本]]*食品表[[#This Row],[每位儿童份数]],"") -> ¥1.69 | I20: =IFERROR(食品表[[#This Row],[每份成本]]*食品表[[#This Row],[每位成人份数]],"") -> ¥2.54 | J20: 前一晚准备好
B21: 帕尔马干酪皮塔饼薯片 | C21: ¥140.00 | D21: 4 | E21: 6 | F21: =(食品表[[#This Row],[每位儿童份数]]*ChildrenTotal)+(食品表[[#This Row],[每位成人份数]]*AdultTotal) -> 236 | G21: =IFERROR(食品表[[#This Row],[总成本]]/食品表[[#This Row],[总份数]],"") -> ¥0.59 | H21: =IFERROR(食品表[[#This Row],[每份成本]]*食品表[[#This Row],[每位儿童份数]],"") -> ¥2.37 | I21: =IFERROR(食品表[[#This Row],[每份成本]]*食品表[[#This Row],[每位成人份数]],"") -> ¥3.56 | J21: 前一晚准备好
B22: 什锦蔬菜 | C22: ¥300.00 | D22: 4 | E22: 10 | F22: =(食品表[[#This Row],[每位儿童份数]]*ChildrenTotal)+(食品表[[#This Row],[每位成人份数]]*AdultTotal) -> 340 | G22: =IFERROR(食品表[[#This Row],[总成本]]/食品表[[#This Row],[总份数]],"") -> ¥0.88 | H22: =IFERROR(食品表[[#This Row],[每份成本]]*食品表[[#This Row],[每位儿童份数]],"") -> ¥3.53 | I22: =IFERROR(食品表[[#This Row],[每份成本]]*食品表[[#This Row],[每位成人份数]],"") -> ¥8.82 | J22: 胡萝卜条、芹菜、西兰花、菜花、红椒和青椒
B23: 奶酪球 | C23: ¥150.00 | D23: 5 | E23: 10 | F23: =(食品表[[#This Row],[每位儿童份数]]*ChildrenTotal)+(食品表[[#This Row],[每位成人份数]]*AdultTotal) -> 360 | G23: =IFERROR(食品表[[#This Row],[总成本]]/食品表[[#This Row],[总份数]],"") -> ¥0.42 | H23: =IFERROR(食品表[[#This Row],[每份成本]]*食品表[[#This Row],[每位儿童份数]],"") -> ¥2.08 | I23: =IFERROR(食品表[[#This Row],[每份成本]]*食品表[[#This Row],[每位成人份数]],"") -> ¥4.17 | J23: 什锦：奶油干酪、浓郁奶酪夹坚果
B24: 咸饼干 | C24: ¥250.00 | D24: 5 | E24: 10 | F24: =(食品表[[#This Row],[每位儿童份数]]*ChildrenTotal)+(食品表[[#This Row],[每位成人份数]]*AdultTotal) -> 360 | G24: =IFERROR(食品表[[#This Row],[总成本]]/食品表[[#This Row],[总份数]],"") -> ¥0.69 | H24: =IFERROR(食品表[[#This Row],[每份成本]]*食品表[[#This Row],[每位儿童份数]],"") -> ¥3.47 | I24: =IFERROR(食品表[[#This Row],[每份成本]]*食品表[[#This Row],[每位成人份数]],"") -> ¥6.94 | J24: 什锦
B25: 总计 | C25: =SUBTOTAL(109,食品表[总成本]) -> ¥4,750.00 | D25: =SUBTOTAL(109,食品表[每位儿童份数]) -> 34.5 | E25: =SUBTOTAL(109,食品表[每位成人份数]) -> 65.5 | F25: =SUBTOTAL(109,食品表[总份数]) -> 2393 | G25: =SUBTOTAL(109,食品表[每份成本]) -> ¥69.16 | H25: =SUBTOTAL(109,食品表[每位儿童成本]) -> ¥72.53 | I25: =SUBTOTAL(109,食品表[每位成人成本]) -> ¥126.90

Sheet 其他必需品
B3: 其他必需品
B6: 设备和用品 | C6: 成本 | D6: 已购买 | E6: 备注
B7: 房间/餐厅租赁 | C7: ¥2,500.00 | D7: 是
B8: 日用织品 | C8: ¥300.00 | D8: 是 | E8: 租金
B9: 桌椅 | C9: 0 | E9: 包含在餐厅租金中
B10: 饮料餐巾 | C10: ¥250.00
B11: 晚餐餐巾 | C11: ¥200.00 | E11: 租金
B12: 餐桌服务 | C12: ¥500.00 | E12: 租金
B13: 玻璃器具 | C13: ¥250.00 | E13: 租金
B14: 总计 | C14: =SUBTOTAL(109,表_1_预算[成本]) -> ¥4,000.00
B18: 装饰品 | C18: 成本 | D18: 已购买 | E18: 备注
B19: 气球 | C19: ¥250.00
B20: 氦气瓶 | C20: ¥500.00 | E20: 租金
B21: 餐桌中央装饰品 | C21: ¥1,000.00 | D21: 是 | E21: 共 10 个
B22: 玻璃花瓶 | C22: 0 | E22: 从 Sandy 处借入
B23: 总计 | C23: =SUBTOTAL(109,表_2_预算[成本]) -> ¥1,750.00
B27: 其他 | C27: 成本 | D27: 已购买 | E27: 备注
B28: 邀请函 | C28: ¥500.00 | D28: 是
B29: 邮资 | C29: ¥600.00 | D29: 是
B30: 摄影师 | C30: ¥1,250.00 | E30: 2 小时（下午 2 点 - 下午 4 点）
B31: 聚会装饰品 | C31: ¥500.00
B32: 总计 | C32: =SUBTOTAL(109,表_3_预算[成本]) -> ¥2,850.00

Sheet 座位安排网格
A1: 座位安排
AH35: *1 平 = 约 1 平方英尺
A36: 备注 | T36: =" 确认来宾的总数： "&ConfirmedGuests -> 确认来宾的总数： 46
T37: 您可使用以下任一餐桌设置：
U38: =ROUNDUP(ConfirmedGuests/6,0)&" 张 54 英寸圆桌（6 个座位）" -> 8 张 54 英寸圆桌（6 个座位）
U39: =ROUNDUP(ConfirmedGuests/8,0) &" 张 60 英寸圆桌（8 个座位）" -> 6 张 60 英寸圆桌（8 个座位）
U40: =ROUNDUP(ConfirmedGuests/10,0)&" 张 72 英寸圆桌（10 个座位）" -> 5 张 72 英寸圆桌（10 个座位）
U41: =ROUNDUP(ConfirmedGuests/6,0)& " 张 30 英寸 x 72 英寸方桌（6 个座位）" -> 8 张 30 英寸 x 72 英寸方桌（6 个座位）
U42: =ROUNDUP(ConfirmedGuests/8,0)&" 张 30 英寸 x 96 英寸方桌（8 个座位）" -> 6 张 30 英寸 x 96 英寸方桌（8 个座位）
T43: （餐桌最佳间距 42 英寸）
